[Event "Titled Tuesday Blitz August 15 Early 2023"]
[White "Vasques, Antonio Pedro Freixial"]
[Black "Baches Garcia, Guillermo"]
[WhiteFideId "1908332"]
[BlackFideId "2209764"]
[WhiteElo "2362"]
[BlackElo "2480"]
[Result "1-0"]
[Round "8"]
[TimeControl "180+1"]
[Date "2023.08.15"]
[WhiteClock "0:00:31"]
[BlackClock "0:00:00"]
[Board "115"]

1. e4 {[%clk 0:03:00]}  c5 {[%clk 0:02:59]} 2. Nc3 {[%clk 0:03:00]}  d6 {[%clk 0:03:00]} 3. Nf3 {[%clk 0:02:59]}  Nc6 {[%clk 0:02:59]} 4. d4 {[%clk 0:02:59]}  cxd4 {[%clk 0:03:00]} 5. Nxd4 {[%clk 0:02:59]}  Nf6 {[%clk 0:03:01]} 6. Bg5 {[%clk 0:02:58]}  e6 {[%clk 0:03:01]} 7. Qd2 {[%clk 0:02:58]}  h6 {[%clk 0:03:01]} 8. Bxf6 {[%clk 0:02:54]}  gxf6 {[%clk 0:03:02]} 9. O-O-O {[%clk 0:02:53]}  a6 {[%clk 0:03:02]} 10. Kb1 {[%clk 0:02:50]}  Bd7 {[%clk 0:03:02]} 11. Nb3 {[%clk 0:02:46]}  h5 {[%clk 0:02:56]} 12. f4 {[%clk 0:02:45]}  Qb6 {[%clk 0:02:52]} 13. Be2 {[%clk 0:02:43]}  h4 {[%clk 0:02:51]} 14. Rhf1 {[%clk 0:02:39]}  O-O-O {[%clk 0:02:51]} 15. f5 {[%clk 0:02:39]}  Be7 {[%clk 0:02:38]} 16. Bg4 {[%clk 0:02:30]}  Ne5 {[%clk 0:02:32]} 17. Bh3 {[%clk 0:02:30]}  Kb8 {[%clk 0:02:26]} 18. Qd4 {[%clk 0:02:25]}  Qc7 {[%clk 0:02:13]} 19. Ne2 {[%clk 0:02:19]}  Rc8 {[%clk 0:02:06]} 20. Rc1 {[%clk 0:02:17]}  Qc4 {[%clk 0:01:51]} 21. Qxc4 {[%clk 0:02:01]}  Nxc4 {[%clk 0:01:49]} 22. fxe6 {[%clk 0:01:57]}  fxe6 {[%clk 0:01:40]} 23. Ned4 {[%clk 0:01:55]}  f5 {[%clk 0:01:17]} 24. exf5 {[%clk 0:01:50]}  exf5 {[%clk 0:01:16]} 25. Bxf5 {[%clk 0:01:47]}  Bxf5 {[%clk 0:01:10]} 26. Nxf5 {[%clk 0:01:48]}  Bg5 {[%clk 0:01:09]} 27. Rcd1 {[%clk 0:01:41]}  Rhe8 {[%clk 0:00:59]} 28. Rfe1 {[%clk 0:01:26]}  Rf8 {[%clk 0:00:51]} 29. Nbd4 {[%clk 0:01:24]}  Rf6 {[%clk 0:00:33]} 30. c3 {[%clk 0:01:22]}  Rcf8 {[%clk 0:00:29]} 31. b3 {[%clk 0:00:48]}  Ne5 {[%clk 0:00:21]} 32. Rf1 {[%clk 0:00:45]}  Ng4 {[%clk 0:00:20]} 33. h3 {[%clk 0:00:43]}  Ne3 {[%clk 0:00:17]} 34. Nxe3 {[%clk 0:00:43]}  Bxe3 {[%clk 0:00:18]} 35. Rxf6 {[%clk 0:00:40]}  Rxf6 {[%clk 0:00:19]} 36. Nf3 {[%clk 0:00:41]}  Bf2 {[%clk 0:00:17]} 37. Rd2 {[%clk 0:00:37]}  Bg3 {[%clk 0:00:17]} 38. Rd4 {[%clk 0:00:36]}  Re6 {[%clk 0:00:16]} 39. Kc2 {[%clk 0:00:36]}  Re2+ {[%clk 0:00:15]} 40. Rd2 {[%clk 0:00:36]}  Re3 {[%clk 0:00:16]} 41. Kd1 {[%clk 0:00:31]}  Rxc3 {[%clk 0:00:15]} 42. Ke2 {[%clk 0:00:32]}  Rc1 {[%clk 0:00:15]} 43. Ng5 {[%clk 0:00:30]}  Rg1 {[%clk 0:00:14]} 44. Kf3 {[%clk 0:00:29]}  Rf1+ {[%clk 0:00:14]} 45. Kg4 {[%clk 0:00:30]}  Rf4+ {[%clk 0:00:14]} 46. Kh5 {[%clk 0:00:30]}  Rf2 {[%clk 0:00:13]} 47. Rxf2 {[%clk 0:00:30]}  Bxf2 {[%clk 0:00:13]} 48. Ne4 {[%clk 0:00:30]}  Bg3 {[%clk 0:00:12]} 49. Nxg3 {[%clk 0:00:30]}  hxg3 {[%clk 0:00:11]} 50. Kg4 {[%clk 0:00:31]}  d5 {[%clk 0:00:12]} 51. h4 {[%clk 0:00:29]}  d4 {[%clk 0:00:13]} 52. h5 {[%clk 0:00:29]}  d3 {[%clk 0:00:13]} 53. Kf3 {[%clk 0:00:30]}  d2 {[%clk 0:00:14]} 54. Ke2 {[%clk 0:00:30]}  d1=Q+ {[%clk 0:00:00]} 55. Kxd1 {[%clk 0:00:31]} 1-0


[Site "https://www.chess.com"]

[Event "Titled Tuesday Blitz August 15 Early 2023"]
[White "Devaev, Alexander"]
[Black "Amanov, Zhanibek"]
[WhiteFideId "4169395"]
[BlackFideId "13700189"]
[WhiteElo "2460"]
[BlackElo "2362"]
[Result "1-0"]
[Round "8"]
[TimeControl "180+1"]
[Date "2023.08.15"]
[WhiteClock "0:00:06"]
[BlackClock "0:00:00"]
[Board "116"]

1. d4 {[%clk 0:02:53]}  d5 {[%clk 0:02:59]} 2. Nf3 {[%clk 0:02:53]}  Nf6 {[%clk 0:02:59]} 3. c4 {[%clk 0:02:53]}  c6 {[%clk 0:02:59]} 4. Nc3 {[%clk 0:02:53]}  dxc4 {[%clk 0:02:59]} 5. a4 {[%clk 0:02:54]}  Bf5 {[%clk 0:02:59]} 6. e3 {[%clk 0:02:53]}  e6 {[%clk 0:02:59]} 7. Bxc4 {[%clk 0:02:53]}  Bb4 {[%clk 0:02:57]} 8. O-O {[%clk 0:02:54]}  O-O {[%clk 0:02:56]} 9. Qb3 {[%clk 0:02:55]}  Qa5 {[%clk 0:02:55]} 10. Na2 {[%clk 0:02:51]}  Bd6 {[%clk 0:02:33]} 11. Qxb7 {[%clk 0:02:44]}  Nbd7 {[%clk 0:02:32]} 12. Bd2 {[%clk 0:02:16]}  Qxa4 {[%clk 0:02:28]} 13. b3 {[%clk 0:02:16]}  Qa3 {[%clk 0:02:08]} 14. Nb4 {[%clk 0:02:12]}  Bxb4 {[%clk 0:01:56]} 15. Bxb4 {[%clk 0:01:30]}  Qb2 {[%clk 0:01:48]} 16. Bxf8 {[%clk 0:01:31]}  Rxf8 {[%clk 0:01:46]} 17. Qxa7 {[%clk 0:01:31]}  Qc2 {[%clk 0:01:39]} 18. Qb7 {[%clk 0:00:57]}  Qe4 {[%clk 0:01:33]} 19. Ra8 {[%clk 0:00:56]}  Qg4 {[%clk 0:01:25]} 20. Rxf8+ {[%clk 0:00:53]}  Kxf8 {[%clk 0:01:18]} 21. Ne5 {[%clk 0:00:53]}  Nxe5 {[%clk 0:00:59]} 22. Qb8+ {[%clk 0:00:50]}  Ne8 {[%clk 0:00:56]} 23. Qxe5 {[%clk 0:00:50]}  f6 {[%clk 0:00:44]} 24. Qf4 {[%clk 0:00:29]}  Qg6 {[%clk 0:00:33]} 25. f3 {[%clk 0:00:29]}  Bd3 {[%clk 0:00:17]} 26. Re1 {[%clk 0:00:16]}  Bxc4 {[%clk 0:00:16]} 27. bxc4 {[%clk 0:00:17]}  Qc2 {[%clk 0:00:17]} 28. c5 {[%clk 0:00:15]}  Qd2 {[%clk 0:00:10]} 29. Qg3 {[%clk 0:00:16]}  f5 {[%clk 0:00:06]} 30. Qf2 {[%clk 0:00:16]}  Qc3 {[%clk 0:00:06]} 31. Rd1 {[%clk 0:00:15]}  Nf6 {[%clk 0:00:05]} 32. Qd2 {[%clk 0:00:16]}  Qc4 {[%clk 0:00:03]} 33. Rc1 {[%clk 0:00:16]}  Qa4 {[%clk 0:00:03]} 34. h3 {[%clk 0:00:16]}  Nd5 {[%clk 0:00:02]} 35. e4 {[%clk 0:00:15]}  Nf6 {[%clk 0:00:02]} 36. d5 {[%clk 0:00:13]}  cxd5 {[%clk 0:00:01]} 37. c6 {[%clk 0:00:12]}  Qa7+ {[%clk 0:00:01]} 38. Qf2 {[%clk 0:00:10]}  Qc7 {[%clk 0:00:02]} 39. exd5 {[%clk 0:00:10]}  Nxd5 {[%clk 0:00:02]} 40. Qc5+ {[%clk 0:00:10]}  Kf7 {[%clk 0:00:02]} 41. Rb1 {[%clk 0:00:10]}  Qf4 {[%clk 0:00:01]} 42. c7 {[%clk 0:00:07]}  Qg3 {[%clk 0:00:00]} 43. c8=Q {[%clk 0:00:06]} 1-0


[Site "https://www.chess.com"]

[Event "Titled Tuesday Blitz August 15 Early 2023"]
[White "brm72"]
[Black "arturdailima"]
[WhiteElo "2458"]
[BlackElo "2358"]
[Result "1-0"]
[Round "8"]
[TimeControl "180+1"]
[Date "2023.08.15"]
[WhiteClock "0:00:28"]
[BlackClock "0:00:05"]
[Board "117"]

1. e4 {[%clk 0:03:00]}  c5 {[%clk 0:02:58]} 2. Nf3 {[%clk 0:03:00]}  d6 {[%clk 0:02:57]} 3. d4 {[%clk 0:03:00]}  cxd4 {[%clk 0:02:58]} 4. Nxd4 {[%clk 0:03:01]}  Nf6 {[%clk 0:02:58]} 5. Nc3 {[%clk 0:03:01]}  a6 {[%clk 0:02:58]} 6. f3 {[%clk 0:03:02]}  e5 {[%clk 0:02:56]} 7. Nb3 {[%clk 0:03:02]}  Be6 {[%clk 0:02:57]} 8. Be3 {[%clk 0:03:02]}  h5 {[%clk 0:02:57]} 9. Qd2 {[%clk 0:03:03]}  Nbd7 {[%clk 0:02:55]} 10. O-O-O {[%clk 0:03:03]}  Be7 {[%clk 0:02:51]} 11. Kb1 {[%clk 0:03:04]}  Rc8 {[%clk 0:02:46]} 12. h3 {[%clk 0:03:04]}  h4 {[%clk 0:02:38]} 13. Bd3 {[%clk 0:03:05]}  b5 {[%clk 0:02:34]} 14. f4 {[%clk 0:03:05]}  exf4 {[%clk 0:02:32]} 15. Bxf4 {[%clk 0:03:06]}  Ne5 {[%clk 0:02:32]} 16. Rhe1 {[%clk 0:03:03]}  O-O {[%clk 0:02:27]} 17. Nd5 {[%clk 0:03:03]}  Nxd5 {[%clk 0:02:05]} 18. exd5 {[%clk 0:02:58]}  Bxd5 {[%clk 0:02:05]} 19. Bxe5 {[%clk 0:02:35]}  dxe5 {[%clk 0:02:03]} 20. Rxe5 {[%clk 0:02:35]}  Bxb3 {[%clk 0:01:58]} 21. axb3 {[%clk 0:02:25]}  Rc5 {[%clk 0:01:47]} 22. Qe3 {[%clk 0:02:15]}  Rxe5 {[%clk 0:01:42]} 23. Qxe5 {[%clk 0:02:16]}  Bf6 {[%clk 0:01:39]} 24. Qe4 {[%clk 0:02:10]}  g6 {[%clk 0:01:36]} 25. Rf1 {[%clk 0:02:08]}  Kg7 {[%clk 0:01:32]} 26. c3 {[%clk 0:02:02]}  Qe7 {[%clk 0:01:25]} 27. Qf3 {[%clk 0:02:00]}  Rd8 {[%clk 0:01:19]} 28. Bc2 {[%clk 0:02:00]}  Rd2 {[%clk 0:01:16]} 29. b4 {[%clk 0:01:47]}  Qd6 {[%clk 0:01:13]} 30. Qb7 {[%clk 0:01:35]}  Qe5 {[%clk 0:00:52]} 31. Qf3 {[%clk 0:01:06]}  a5 {[%clk 0:00:47]} 32. bxa5 {[%clk 0:00:58]}  b4 {[%clk 0:00:47]} 33. a6 {[%clk 0:00:40]}  bxc3 {[%clk 0:00:45]} 34. a7 {[%clk 0:00:34]}  Rxc2 {[%clk 0:00:07]} 35. Kxc2 {[%clk 0:00:28]}  cxb2 {[%clk 0:00:04]} 36. Qxf6+ {[%clk 0:00:28]}  Qxf6 {[%clk 0:00:04]} 37. Rxf6 {[%clk 0:00:28]}  Kxf6 {[%clk 0:00:05]} 1-0


[Site "https://www.chess.com"]

[Event "Titled Tuesday Blitz August 15 Early 2023"]
[White "Pershina, Elena"]
[Black "Ljukin, Sergei"]
[WhiteFideId "24147516"]
[BlackFideId "14102200"]
[WhiteElo "2352"]
[BlackElo "2454"]
[Result "1-0"]
[Round "8"]
[TimeControl "180+1"]
[Date "2023.08.15"]
[WhiteClock "0:00:32"]
[BlackClock "0:00:00"]
[Board "118"]

1. c4 {[%clk 0:03:00]}  c6 {[%clk 0:02:58]} 2. g3 {[%clk 0:03:00]}  d5 {[%clk 0:02:58]} 3. Bg2 {[%clk 0:03:01]}  Nf6 {[%clk 0:02:59]} 4. Nf3 {[%clk 0:03:00]}  Bf5 {[%clk 0:02:57]} 5. b3 {[%clk 0:02:58]}  e6 {[%clk 0:02:56]} 6. O-O {[%clk 0:02:56]}  Bd6 {[%clk 0:02:55]} 7. Bb2 {[%clk 0:02:55]}  Nbd7 {[%clk 0:02:55]} 8. d4 {[%clk 0:02:54]}  O-O {[%clk 0:02:52]} 9. Nbd2 {[%clk 0:02:52]}  b5 {[%clk 0:02:34]} 10. Nh4 {[%clk 0:02:44]}  Bg4 {[%clk 0:02:33]} 11. Re1 {[%clk 0:02:28]}  e5 {[%clk 0:02:14]} 12. cxd5 {[%clk 0:02:20]}  cxd5 {[%clk 0:02:13]} 13. dxe5 {[%clk 0:02:18]}  Nxe5 {[%clk 0:02:13]} 14. h3 {[%clk 0:02:09]}  Be6 {[%clk 0:02:12]} 15. Nhf3 {[%clk 0:02:05]}  Nc6 {[%clk 0:02:06]} 16. Nd4 {[%clk 0:02:00]}  Nxd4 {[%clk 0:02:02]} 17. Bxd4 {[%clk 0:02:01]}  a5 {[%clk 0:01:55]} 18. Nf3 {[%clk 0:02:00]}  Ne4 {[%clk 0:01:49]} 19. e3 {[%clk 0:01:57]}  Bb4 {[%clk 0:01:38]} 20. Re2 {[%clk 0:01:53]}  Nc3 {[%clk 0:01:38]} 21. Bxc3 {[%clk 0:01:50]}  Bxc3 {[%clk 0:01:38]} 22. Rc1 {[%clk 0:01:51]}  b4 {[%clk 0:01:38]} 23. Nd4 {[%clk 0:01:50]}  a4 {[%clk 0:01:35]} 24. Nb5 {[%clk 0:01:42]}  Be5 {[%clk 0:01:25]} 25. Rec2 {[%clk 0:01:38]}  axb3 {[%clk 0:01:22]} 26. axb3 {[%clk 0:01:39]}  Qd7 {[%clk 0:00:57]} 27. Nc7 {[%clk 0:01:30]}  Rad8 {[%clk 0:00:42]} 28. Kh2 {[%clk 0:01:12]}  d4 {[%clk 0:00:20]} 29. exd4 {[%clk 0:01:04]}  Bxd4 {[%clk 0:00:18]} 30. Rd2 {[%clk 0:01:00]}  Bf5 {[%clk 0:00:11]} 31. Nd5 {[%clk 0:00:53]}  Bc3 {[%clk 0:00:09]} 32. Nf6+ {[%clk 0:00:51]}  Bxf6 {[%clk 0:00:08]} 33. Rxd7 {[%clk 0:00:51]}  Rxd7 {[%clk 0:00:09]} 34. Qf3 {[%clk 0:00:50]}  Be6 {[%clk 0:00:08]} 35. Qc6 {[%clk 0:00:49]}  Bc3 {[%clk 0:00:08]} 36. Be4 {[%clk 0:00:42]}  Rfd8 {[%clk 0:00:08]} 37. Rb1 {[%clk 0:00:37]}  g6 {[%clk 0:00:07]} 38. h4 {[%clk 0:00:36]}  Rd2 {[%clk 0:00:07]} 39. Kg2 {[%clk 0:00:34]}  Bd4 {[%clk 0:00:06]} 40. Rf1 {[%clk 0:00:34]}  Rc8 {[%clk 0:00:05]} 41. Qb7 {[%clk 0:00:33]}  Rc3 {[%clk 0:00:04]} 42. Qxb4 {[%clk 0:00:32]}  Bf6 {[%clk 0:00:03]} 43. Qb8+ {[%clk 0:00:32]}  Kg7 {[%clk 0:00:03]} 44. h5 {[%clk 0:00:32]}  Rxb3 {[%clk 0:00:03]} 45. Qf4 {[%clk 0:00:31]}  Rdb2 {[%clk 0:00:02]} 46. h6+ {[%clk 0:00:31]}  Kg8 {[%clk 0:00:00]} 47. Qxf6 {[%clk 0:00:32]} 1-0


[Site "https://www.chess.com"]

[Event "Titled Tuesday Blitz August 15 Early 2023"]
[White "Mrudul Dehankar"]
[Black "Polaczek, Richard"]
[WhiteFideId "25096990"]
[BlackFideId "200026"]
[WhiteElo "2442"]
[BlackElo "2346"]
[Result "0-1"]
[Round "8"]
[TimeControl "180+1"]
[Date "2023.08.15"]
[WhiteClock "0:00:00"]
[BlackClock "0:00:10"]
[Board "120"]

1. e4 {[%clk 0:02:56]}  Nf6 {[%clk 0:02:59]} 2. e5 {[%clk 0:02:56]}  Nd5 {[%clk 0:03:00]} 3. d4 {[%clk 0:02:56]}  d6 {[%clk 0:03:00]} 4. c4 {[%clk 0:02:56]}  Nb6 {[%clk 0:03:00]} 5. exd6 {[%clk 0:02:56]}  cxd6 {[%clk 0:03:00]} 6. Nf3 {[%clk 0:02:54]}  g6 {[%clk 0:03:00]} 7. h3 {[%clk 0:02:53]}  Bg7 {[%clk 0:03:00]} 8. Be2 {[%clk 0:02:52]}  O-O {[%clk 0:03:00]} 9. O-O {[%clk 0:02:51]}  Nc6 {[%clk 0:02:58]} 10. Nc3 {[%clk 0:02:51]}  Bf5 {[%clk 0:02:56]} 11. Be3 {[%clk 0:02:49]}  d5 {[%clk 0:02:55]} 12. c5 {[%clk 0:02:50]}  Nc4 {[%clk 0:02:55]} 13. Bxc4 {[%clk 0:02:50]}  dxc4 {[%clk 0:02:55]} 14. Qa4 {[%clk 0:02:50]}  e5 {[%clk 0:02:54]} 15. d5 {[%clk 0:02:43]}  Nd4 {[%clk 0:02:47]} 16. Nd2 {[%clk 0:02:06]}  Bd3 {[%clk 0:02:38]} 17. Rfc1 {[%clk 0:02:03]}  b5 {[%clk 0:01:50]} 18. Nxb5 {[%clk 0:01:50]}  Ne2+ {[%clk 0:01:46]} 19. Kh1 {[%clk 0:01:36]}  Nxc1 {[%clk 0:01:43]} 20. Rxc1 {[%clk 0:01:35]}  Qxd5 {[%clk 0:01:29]} 21. Nc7 {[%clk 0:01:31]}  Qb7 {[%clk 0:01:29]} 22. Nxa8 {[%clk 0:01:29]}  Rxa8 {[%clk 0:01:23]} 23. Nxc4 {[%clk 0:01:27]}  e4 {[%clk 0:01:06]} 24. c6 {[%clk 0:01:16]}  Qc7 {[%clk 0:01:02]} 25. Bb6 {[%clk 0:01:11]}  Qf4 {[%clk 0:00:58]} 26. Be3 {[%clk 0:01:07]}  Qc7 {[%clk 0:00:53]} 27. Nb6 {[%clk 0:00:56]}  Rd8 {[%clk 0:00:44]} 28. Nd7 {[%clk 0:00:56]}  Bxb2 {[%clk 0:00:41]} 29. Rd1 {[%clk 0:00:27]}  a6 {[%clk 0:00:40]} 30. Bb6 {[%clk 0:00:24]}  Qc8 {[%clk 0:00:36]} 31. Bxd8 {[%clk 0:00:23]}  Qxd8 {[%clk 0:00:36]} 32. Qb4 {[%clk 0:00:22]}  Bg7 {[%clk 0:00:31]} 33. Qd6 {[%clk 0:00:21]}  e3 {[%clk 0:00:20]} 34. c7 {[%clk 0:00:11]}  Qc8 {[%clk 0:00:18]} 35. fxe3 {[%clk 0:00:10]}  Be4 {[%clk 0:00:17]} 36. Nb6 {[%clk 0:00:10]}  Qxh3+ {[%clk 0:00:15]} 37. Qh2 {[%clk 0:00:09]}  Bxg2+ {[%clk 0:00:14]} 38. Kg1 {[%clk 0:00:09]}  Qxe3+ {[%clk 0:00:14]} 39. Kxg2 {[%clk 0:00:09]}  Qe2+ {[%clk 0:00:14]} 40. Kh3 {[%clk 0:00:07]}  Qe6+ {[%clk 0:00:12]} 41. Kg3 {[%clk 0:00:02]}  Be5+ {[%clk 0:00:11]} 42. Kf2 {[%clk 0:00:00]}  Qxa2+ {[%clk 0:00:10]} 0-1


[Site "https://www.chess.com"]

[Event "Titled Tuesday Blitz August 15 Early 2023"]
[White "Pumpkin_in_moonlight"]
[Black "dr_tatiana"]
[WhiteElo "2344"]
[BlackElo "2437"]
[Result "0-1"]
[Round "8"]
[TimeControl "180+1"]
[Date "2023.08.15"]
[WhiteClock "0:00:17"]
[BlackClock "0:00:17"]
[Board "121"]

1. e4 {[%clk 0:03:00]}  e5 {[%clk 0:02:59]} 2. Nf3 {[%clk 0:03:00]}  Nc6 {[%clk 0:02:58]} 3. Bc4 {[%clk 0:03:00]}  Bc5 {[%clk 0:02:58]} 4. c3 {[%clk 0:02:57]}  Nf6 {[%clk 0:02:57]} 5. d3 {[%clk 0:02:56]}  d6 {[%clk 0:02:57]} 6. O-O {[%clk 0:02:55]}  a6 {[%clk 0:02:58]} 7. Nbd2 {[%clk 0:02:36]}  Ba7 {[%clk 0:02:57]} 8. Bb3 {[%clk 0:02:24]}  h6 {[%clk 0:02:56]} 9. Nc4 {[%clk 0:02:17]}  Bg4 {[%clk 0:02:47]} 10. Ne3 {[%clk 0:02:12]}  Bh5 {[%clk 0:02:47]} 11. Nf5 {[%clk 0:02:04]}  O-O {[%clk 0:02:41]} 12. Ng3 {[%clk 0:01:57]}  Bg6 {[%clk 0:02:34]} 13. Nh4 {[%clk 0:01:57]}  Bh7 {[%clk 0:02:34]} 14. Nhf5 {[%clk 0:01:55]}  Ne7 {[%clk 0:02:33]} 15. Qf3 {[%clk 0:01:49]}  Nxf5 {[%clk 0:02:28]} 16. Nxf5 {[%clk 0:01:48]}  Bxf5 {[%clk 0:02:02]} 17. Qxf5 {[%clk 0:01:41]}  Qd7 {[%clk 0:02:01]} 18. Qf3 {[%clk 0:01:33]}  Kh7 {[%clk 0:01:49]} 19. Be3 {[%clk 0:01:27]}  c5 {[%clk 0:01:32]} 20. h3 {[%clk 0:01:10]}  Ng8 {[%clk 0:01:16]} 21. Rad1 {[%clk 0:01:01]}  f5 {[%clk 0:01:10]} 22. exf5 {[%clk 0:00:59]}  Rxf5 {[%clk 0:01:09]} 23. Qe2 {[%clk 0:00:53]}  Kh8 {[%clk 0:00:59]} 24. Bd5 {[%clk 0:00:45]}  Ne7 {[%clk 0:00:54]} 25. Be4 {[%clk 0:00:45]}  Rf6 {[%clk 0:00:53]} 26. d4 {[%clk 0:00:36]}  exd4 {[%clk 0:00:39]} 27. cxd4 {[%clk 0:00:36]}  Re6 {[%clk 0:00:32]} 28. Qf3 {[%clk 0:00:28]}  d5 {[%clk 0:00:30]} 29. Bb1 {[%clk 0:00:26]}  c4 {[%clk 0:00:26]} 30. Rfe1 {[%clk 0:00:24]}  Rf6 {[%clk 0:00:22]} 31. Qg3 {[%clk 0:00:24]}  Raf8 {[%clk 0:00:18]} 32. Re2 {[%clk 0:00:20]}  Bb8 {[%clk 0:00:19]} 33. Qg4 {[%clk 0:00:19]}  Qd6 {[%clk 0:00:17]} 34. h4 {[%clk 0:00:17]}  Qh2+ {[%clk 0:00:16]} 35. Kf1 {[%clk 0:00:17]}  Qh1# {[%clk 0:00:17]} 0-1


[Site "https://www.chess.com"]

[Event "Titled Tuesday Blitz August 15 Early 2023"]
[White "Bueno, Alfeu Junior Varela"]
[Black "Nithyalakshmi, Sivanesan"]
[WhiteFideId "2108879"]
[BlackFideId "5706955"]
[WhiteElo "2436"]
[BlackElo "2344"]
[Result "1-0"]
[Round "8"]
[TimeControl "180+1"]
[Date "2023.08.15"]
[WhiteClock "0:00:03"]
[BlackClock "0:00:00"]
[Board "122"]

1. e4 {[%clk 0:02:54]}  e6 {[%clk 0:02:59]} 2. d4 {[%clk 0:02:54]}  d5 {[%clk 0:02:59]} 3. Nd2 {[%clk 0:02:54]}  Nc6 {[%clk 0:02:55]} 4. Ngf3 {[%clk 0:02:53]}  Nf6 {[%clk 0:02:55]} 5. e5 {[%clk 0:02:52]}  Nd7 {[%clk 0:02:33]} 6. Bb5 {[%clk 0:02:52]}  a6 {[%clk 0:02:00]} 7. Bxc6 {[%clk 0:02:52]}  bxc6 {[%clk 0:02:01]} 8. Nb3 {[%clk 0:02:51]}  a5 {[%clk 0:01:59]} 9. O-O {[%clk 0:02:50]}  a4 {[%clk 0:01:59]} 10. Nbd2 {[%clk 0:02:31]}  c5 {[%clk 0:01:57]} 11. Re1 {[%clk 0:02:29]}  cxd4 {[%clk 0:01:54]} 12. Nxd4 {[%clk 0:02:30]}  Bb7 {[%clk 0:01:54]} 13. f4 {[%clk 0:02:26]}  c5 {[%clk 0:01:49]} 14. Nb5 {[%clk 0:02:17]}  Qb6 {[%clk 0:01:46]} 15. c4 {[%clk 0:02:16]}  dxc4 {[%clk 0:01:39]} 16. Nc3 {[%clk 0:02:15]}  Qc6 {[%clk 0:01:33]} 17. Qe2 {[%clk 0:02:14]}  Nb6 {[%clk 0:01:33]} 18. a3 {[%clk 0:01:53]}  Be7 {[%clk 0:01:32]} 19. Nde4 {[%clk 0:01:42]}  Rd8 {[%clk 0:01:25]} 20. Qg4 {[%clk 0:01:30]}  O-O {[%clk 0:01:01]} 21. Be3 {[%clk 0:01:12]}  Nd5 {[%clk 0:00:59]} 22. Bf2 {[%clk 0:01:02]}  Rfe8 {[%clk 0:00:30]} 23. h4 {[%clk 0:00:43]}  f5 {[%clk 0:00:29]} 24. exf6 {[%clk 0:00:41]}  Bxf6 {[%clk 0:00:25]} 25. Nxf6+ {[%clk 0:00:17]}  Nxf6 {[%clk 0:00:26]} 26. Qg5 {[%clk 0:00:16]}  Rd2 {[%clk 0:00:20]} 27. f5 {[%clk 0:00:13]}  e5 {[%clk 0:00:16]} 28. Re3 {[%clk 0:00:07]}  Re7 {[%clk 0:00:12]} 29. Rg3 {[%clk 0:00:05]}  Red7 {[%clk 0:00:10]} 30. Re1 {[%clk 0:00:03]}  h6 {[%clk 0:00:08]} 31. Qg6 {[%clk 0:00:03]}  R2d6 {[%clk 0:00:07]} 32. Qxh6 {[%clk 0:00:03]}  e4 {[%clk 0:00:03]} 33. Qg5 {[%clk 0:00:01]}  Kf8 {[%clk 0:00:03]} 34. Be3 {[%clk 0:00:02]}  Qc8 {[%clk 0:00:02]} 35. Bf4 {[%clk 0:00:02]}  Rc6 {[%clk 0:00:01]} 36. Be5 {[%clk 0:00:02]}  Qe8 {[%clk 0:00:01]} 37. h5 {[%clk 0:00:02]}  Qf7 {[%clk 0:00:01]} 38. h6 {[%clk 0:00:02]}  gxh6 {[%clk 0:00:01]} 39. Qxh6+ {[%clk 0:00:03]}  Ke7 {[%clk 0:00:00]} 40. Rg7 {[%clk 0:00:03]} 1-0


[Site "https://www.chess.com"]

[Event "Titled Tuesday Blitz August 15 Early 2023"]
[White "Jahnz, Fabian"]
[Black "WindWhistler11"]
[WhiteFideId "4653300"]
[WhiteElo "2343"]
[BlackElo "2436"]
[Result "1-0"]
[Round "8"]
[TimeControl "180+1"]
[Date "2023.08.15"]
[WhiteClock "0:00:17"]
[BlackClock "0:00:10"]
[Board "123"]

1. e4 {[%clk 0:03:00]}  e6 {[%clk 0:02:57]} 2. d4 {[%clk 0:02:57]}  d5 {[%clk 0:02:57]} 3. exd5 {[%clk 0:02:55]}  exd5 {[%clk 0:02:57]} 4. Nc3 {[%clk 0:02:56]}  Ne7 {[%clk 0:02:58]} 5. Bd3 {[%clk 0:02:53]}  Nbc6 {[%clk 0:02:58]} 6. Nge2 {[%clk 0:02:51]}  Be6 {[%clk 0:02:59]} 7. O-O {[%clk 0:02:51]}  Qd7 {[%clk 0:02:59]} 8. a3 {[%clk 0:02:51]}  g6 {[%clk 0:02:58]} 9. Bf4 {[%clk 0:02:48]}  Bg7 {[%clk 0:02:57]} 10. Bb5 {[%clk 0:02:41]}  a6 {[%clk 0:02:56]} 11. Ba4 {[%clk 0:02:37]}  b5 {[%clk 0:02:56]} 12. Bb3 {[%clk 0:02:38]}  Na5 {[%clk 0:02:56]} 13. Ba2 {[%clk 0:02:36]}  O-O {[%clk 0:02:54]} 14. Re1 {[%clk 0:02:33]}  Nc4 {[%clk 0:02:54]} 15. Bxc4 {[%clk 0:02:33]}  dxc4 {[%clk 0:02:53]} 16. Be5 {[%clk 0:02:18]}  f6 {[%clk 0:02:45]} 17. Bg3 {[%clk 0:02:17]}  g5 {[%clk 0:02:38]} 18. Ne4 {[%clk 0:02:12]}  Bd5 {[%clk 0:02:28]} 19. Nc5 {[%clk 0:02:11]}  Qc6 {[%clk 0:02:28]} 20. f3 {[%clk 0:02:06]}  Nf5 {[%clk 0:02:24]} 21. Nc3 {[%clk 0:02:00]}  Rad8 {[%clk 0:02:21]} 22. Nxd5 {[%clk 0:01:59]}  Rxd5 {[%clk 0:02:21]} 23. Re6 {[%clk 0:01:38]}  Nd6 {[%clk 0:02:09]} 24. c3 {[%clk 0:01:34]}  f5 {[%clk 0:01:50]} 25. Qe2 {[%clk 0:01:07]}  Rxd4 {[%clk 0:01:22]} 26. cxd4 {[%clk 0:01:04]}  Bxd4+ {[%clk 0:01:23]} 27. Bf2 {[%clk 0:01:04]}  Qxc5 {[%clk 0:01:23]} 28. Bxd4 {[%clk 0:01:02]}  Qxd4+ {[%clk 0:01:23]} 29. Qf2 {[%clk 0:00:58]}  Qxf2+ {[%clk 0:01:09]} 30. Kxf2 {[%clk 0:00:57]}  Rf7 {[%clk 0:01:10]} 31. Rae1 {[%clk 0:00:57]}  Kg7 {[%clk 0:01:10]} 32. Re7 {[%clk 0:00:57]}  Kf6 {[%clk 0:01:10]} 33. Rxf7+ {[%clk 0:00:54]}  Kxf7 {[%clk 0:01:11]} 34. Re5 {[%clk 0:00:51]}  Kf6 {[%clk 0:01:11]} 35. Rc5 {[%clk 0:00:51]}  Ke6 {[%clk 0:00:59]} 36. Rxc7 {[%clk 0:00:46]}  h5 {[%clk 0:00:57]} 37. Rc6 {[%clk 0:00:46]}  a5 {[%clk 0:00:55]} 38. Ra6 {[%clk 0:00:41]}  a4 {[%clk 0:00:55]} 39. Ke3 {[%clk 0:00:35]}  Kd5 {[%clk 0:00:53]} 40. Ra8 {[%clk 0:00:36]}  f4+ {[%clk 0:00:52]} 41. Kd2 {[%clk 0:00:33]}  Nf5 {[%clk 0:00:49]} 42. Rg8 {[%clk 0:00:31]}  c3+ {[%clk 0:00:35]} 43. Kxc3 {[%clk 0:00:26]}  Ne3 {[%clk 0:00:26]} 44. Rxg5+ {[%clk 0:00:25]}  Kc6 {[%clk 0:00:26]} 45. Rxh5 {[%clk 0:00:23]}  Nxg2 {[%clk 0:00:26]} 46. Kb4 {[%clk 0:00:19]}  Ne3 {[%clk 0:00:25]} 47. Rh6+ {[%clk 0:00:20]}  Kd5 {[%clk 0:00:23]} 48. Kxb5 {[%clk 0:00:20]}  Nc4 {[%clk 0:00:22]} 49. Rh5+ {[%clk 0:00:19]}  Kd4 {[%clk 0:00:23]} 50. Rh4 {[%clk 0:00:18]}  Nxb2 {[%clk 0:00:14]} 51. Rxf4+ {[%clk 0:00:18]}  Ke3 {[%clk 0:00:10]} 52. Rxa4 {[%clk 0:00:17]} 1-0


[Site "https://www.chess.com"]